{"text_format":"1","workbook":"xlsx","n_sheets":3,"sheets":["dálnice","silnice","dohromady silnice+dalnice"],"not_rendered":{"charts":6,"images":0,"macros":0,"external_links":0,"defined_names":40,"comments":0,"pivot_tables":0},"unopened":[],"bounds":{"document_bytes":16777216,"sheet_cells":100000,"rows_first":2000,"rows_last":500,"rows_between":2000,"halvings":0,"cell_chars":16384,"cell_head_chars":4096},"cells_cut":0,"cells_raw":0,"read":"whole","date_system":"1900"}

{"sheet":"dálnice","index":0,"n_rows":7,"n_cols":4,"rows_kept":7,"cut":false,"hidden":false,"merged":[]}
["provoz na dálnici, popis chování","četnost","relativní četnost v %","četnost dle druhu vozidla"]
["překračování rychlosti o více než 20 km/h v místech snížené rychlosti na dálnici",{"$f":"2","v":2},{"$f":"100*B2/B7","v":14.285714285714286},"2xOA"]
["nebezpečné a bezohledné předjíždění (kličkování, předjíždění přes plnou čáru, horizont,  kolony atd.)",{"$f":"1+3+2","v":6},{"$f":"100*B3/B7","v":42.857142857142854},"1x M, 5x OA"]
["předjetí zprava",{"$f":"2","v":2},{"$f":"100*B4/B7","v":14.285714285714286},"1x PČR, 1X OA"]
["nedodržování bezpečné vzdálenosti",{"$f":"3","v":3},{"$f":"100*B5/B7","v":21.428571428571427},"3XOA "]
["pomalá/zmatená jízda, zbytečná jízda v levém jízdním pruhu",{"$f":"1","v":1},{"$f":"100*B6/B7","v":7.1428571428571432},"1x OA"]
["celkem",{"$f":"SUM(B2:B6)","v":14},{"$f":"SUM(C2:C6)","v":100}]

{"sheet":"silnice","index":1,"n_rows":11,"n_cols":4,"rows_kept":11,"cut":false,"hidden":false,"merged":[]}
["provoz na silnici, popis chování","četnost","relativní četnost v %","četnost dle druhu vozidla"]
["překračování rychlosti o více než 15 km/h v obci",{"$f":"2","v":2},{"$f":"100*B2/B11","v":9.5238095238095237},"2xoa"]
["překračování rychlosti o více než 20 km/h ",2,{"$f":"100*B3/B11","v":9.5238095238095237},"2x OA"]
["jízda na červenou",1,{"$f":"100*B4/B11","v":4.7619047619047619},"1xOA"]
["nezastavení na stopce",1,{"$f":"100*B5/B11","v":4.7619047619047619},"1XOA"]
["nedání přednosti zprava/protijedoucímu vozidlu",1,{"$f":"100*B6/B11","v":4.7619047619047619},"1xOA"]
["nebezpečné a bezohledné předjíždění (kličkování, předjíždění přes plnou čáru,horizont, kolony atd.)",{"$f":"9+1+2+1+1","v":14},{"$f":"100*B7/B11","v":66.666666666666671},"2x M, 11x OA, 1x D"]
["předjetí zprava",0,{"$f":"100*B8/B11","v":0}]
["nedodržování bezpečné vzdálenosti",0,{"$f":"100*B9/B11","v":0}]
["pomalá/zmatená jízda, zbytečná jízda v levém jízdním pruhu",0,{"$f":"100*B10/B11","v":0}]
["celkem",{"$f":"SUM(B2:B10)","v":21},{"$f":"100*B11/B11","v":100}]

{"sheet":"dohromady silnice+dalnice","index":2,"n_rows":10,"n_cols":4,"rows_kept":10,"cut":false,"hidden":false,"merged":[]}
["popis chování","četnost","relativní četnost v %","četnost dle druhu vozidla"]
["překračování rychlosti celkem",6,{"$f":"100*B2/B10","v":17.142857142857142},"6xOA"]
["nebezpečné a bezohledné předjíždění (kličkování, předjíždění přes plnou čáru, horizont,  kolony atd.)",20,{"$f":"100*B3/B10","v":57.142857142857146},"3x M, 16x OA, 1x PČR"]
["jízda na červenou",1,{"$f":"100*B4/B10","v":2.8571428571428572},"1xOA"]
["nezastavení na stopce",1,{"$f":"100*B5/B10","v":2.8571428571428572},"1xOA"]
["nedání přednosti zprava/protijedoucímu vozidlu",1,{"$f":"100*B6/B10","v":2.8571428571428572},"1xOA"]
["předjetí zprava",2,{"$f":"100*B7/B10","v":5.7142857142857144},"1x PČR, 1x OA"]
["nedodržování bezpečné vzdálenosti",3,{"$f":"100*B8/B10","v":8.5714285714285712},"3x OA "]
["pomalá/zmatená jízda, zbytečná jízda v levém jízdním pruhu",1,{"$f":"100*B9/B10","v":2.8571428571428572},"1x OA "]
["celkem",{"$f":"SUM(B2:B9)","v":35},{"$f":"100*B10/B10","v":100}]